[Event "RUS-chT Blitz Women 2018"]
[Site "Sochi"]
[Date "2018.10.10"]
[Round "6"]
[White "Mamontova, Anastasia"]
[Black "Sarvarova, Alisa"]
[Result "1-0"]
[ECO "D38"]
[WhiteElo "2009"]
[BlackElo "1216"]
[Annotator "NA RC"]
[PlyCount "57"]
[EventDate "2018.10.10"]
[EventType "swiss"]
[EventCountry "RUS"]
[SourceTitle "playchess.com"]
[Source "ChessBase"]
[SourceQuality "1"]
[TimeControl "180+2"]

1. d4 {[%emt 0:00:04]} d5 {[%emt 0:00:00]} 2. c4 {[%emt 0:00:00]} e6 {[%emt 0:00:01]} 3. Nc3 {[%emt 0:00:02]} Bb4 {[%emt 0:00:02]} 4. Nf3 {[%emt 0:00:16]} Nf6 {[%emt 0:00:03]} 5. Bg5 {[%emt 0:00:03]} O-O {[%emt 0:00:03]} 6. e3 {[%emt 0:00:04]} Nbd7 {[%emt 0:00:05]} 7. cxd5 {[%emt 0:00:07]} exd5 {[%emt 0:00:04]} 8. Bd3 {[%emt 0:00:05]} Nb6 {[%emt 0:00:17]} 9. O-O {[%emt 0:00:05]} Bxc3 {[%emt 0:00:02]} 10. bxc3 {[%emt 0:00:02]} Bg4 {[%emt 0:00:04]} 11. h3 {[%emt 0:00:04]} Bh5 {[%emt 0:00:05]} 12. Qc2 {[%emt 0:00:29]} h6 {[%emt 0:00:08]} 13. Bh4 {[%emt 0:00:10]} Bxf3 {[%emt 0:00:15]} 14. gxf3 {[%emt 0:00:02]} Qd7 {[%emt 0:00:02]} 15. Kh2 {[%emt 0:00:01]} Qd6+ {[%emt 0:00:11]} 16. f4 {[%emt 0:00:16]} Kh8 {[%emt 0:00:05]} 17. Rg1 {[%emt 0:00:03]} Rg8 {[%emt 0:00:02]} 18. Bg3 {[%emt 0:00:12]} Qe6 {[%emt 0:00:07]} 19. f5 {[%emt 0:00:05]} Qe7 {[%emt 0:00:06]} 20. Bf4 {[%emt 0:00:06]} Nh5 {[%emt 0:00:07]} 21. Be5 {[%emt 0:00:34]} f6 {[%emt 0:00:12]} 22. Bg3 {[%emt 0:00:01]} Rac8 {[%emt 0:00:25]} 23. Qe2 {[%emt 0:00:02]} Nxg3 {[%emt 0:00:06]} 24. Rxg3 {[%emt 0:00:01]} Qf7 {[%emt 0:00:04]} 25. Rag1 {[%emt 0:00:02]} c6 {[%emt 0:00:09]} 26. Rg6 {[%emt 0:00:02]} Rc7 {[%emt 0:00:07]} 27. Qh5 {[%emt 0:00:04]} Rd8 {[%emt 0:00:17]} 28. Rxh6+ {[%emt 0:00:18]} Kg8 {[%emt 0:00:05]} 29. Rh8# {[%emt 0:00:02]} 1-0

[Event "RUS-chT Blitz Women 2018"]
[Site "Sochi"]
[Date "2018.10.10"]
[Round "6"]
[White "Khusneeva, Alina"]
[Black "Mukhina, Jana"]
[Result "0-1"]
[ECO "C60"]
[WhiteElo "1066"]
[BlackElo "2072"]
[Annotator "NA RC"]
[PlyCount "56"]
[EventDate "2018.10.10"]
[EventType "swiss"]
[EventCountry "RUS"]
[SourceTitle "playchess.com"]
[Source "ChessBase"]
[SourceQuality "1"]
[TimeControl "180+2"]

1. e4 {[%emt 0:00:00]} e5 {[%emt 0:00:00]} 2. Nf3 {[%emt 0:00:02]} Nc6 {[%emt 0:00:00]} 3. Bb5 {[%emt 0:00:01]} g6 {[%emt 0:00:00]} 4. d3 {[%emt 0:00:05]} Bg7 {[%emt 0:00:00]} 5. O-O {[%emt 0:00:04]} Nge7 {[%emt 0:00:04]} 6. c3 {[%emt 0:00:05]} O-O {[%emt 0:00:01]} 7. Re1 {[%emt 0:00:04]} d6 {[%emt 0:00:05]} 8. d4 {[%emt 0:00:13]} a6 {[%emt 0:00:03]} 9. Ba4 {[%emt 0:00:03]} b5 {[%emt 0:00:01]} 10. Bb3 {[%emt 0:00:05]} Na5 {[%emt 0:00:10]} 11. Bc2 {[%emt 0:00:03]} c5 {[%emt 0:00:03]} 12. dxc5 {[%emt 0:00:12]} dxc5 {[%emt 0:00:01]} 13. Qe2 {[%emt 0:00:17]} Qc7 {[%emt 0:00:05]} 14. Nbd2 {[%emt 0:00:07]} Be6 {[%emt 0:00:07]} 15. Nf1 {[%emt 0:00:02]} Rad8 {[%emt 0:00:26]} 16. Be3 {[%emt 0:00:12]} Nc4 {[%emt 0:00:01]} 17. b3 {[%emt 0:00:14]} Nxe3 {[%emt 0:00:08]} 18. Nxe3 {[%emt 0:00:02]} h6 {[%emt 0:00:04]} 19. Rad1 {[%emt 0:00:08]} Qa5 {[%emt 0:00:05]} 20. c4 {[%emt 0:00:05]} Nc6 {[%emt 0:00:13]} 21. Ra1 {[%emt 0:00:10]} Nd4 {[%emt 0:00:01]} 22. Nxd4 {[%emt 0:00:08]} exd4 {[%emt 0:00:02]} 23. Nd5 {[%emt 0:00:10]} Bxd5 {[%emt 0:00:02]} 24. exd5 {[%emt 0:00:03]} d3 {[%emt 0:00:03]} 25. Qxd3 {[%emt 0:00:06]} Bxa1 {[%emt 0:00:02]} 26. Rxa1 {[%emt 0:00:02]} Rfe8 {[%emt 0:00:07]} 27. Qh3 {[%emt 0:00:21]} Re1+ {[%emt 0:00:02]} 28. Rxe1 {[%emt 0:00:04]} Qxe1# {[%emt 0:00:02]} 0-1